Cogmind - Beta 14 @@@ ROGUE MODE // 2024.12.14 @ 04:38:44 Player: Dzuchun Result: Destroyed by D-53 Grenadier with Mini Grenade Launcher Performance ------------- Evolutions (1) 500 Regions Visited (4) 800 Robots Destroyed (45) 225 Value Destroyed (883) 883 Prototype IDs (0) 0 Alien Tech Used (0) 0 Bonus (0) 0 TOTAL SCORE: 2408 Bonus ------- None Cogmind --------- Core Integrity 0/400 Matter 200/300 Energy 92/250 System Corruption 10% Temperature Cool (0) Movement Treading (480) Ox4 Location -9/Mines Parts ------- > --- POWER (2) -------- Ion Engine > --- PROPULSION (2) --- Light Treads > --- UTILITY (3) ------ High-capacity Storage Unit High-capacity Storage Unit Visual Processing Unit > --- WEAPON (2) ------- (None) > --- INVENTORY (20) --- Improved Heat Sink Weight Redist. System Light Armor Plating Small Laser Beam Rifle Light Assault Rifle Light Assault Rifle Heavy Assault Rifle Datajack Mining Laser Peak State ------------ > --- POWER ------------ Improved Ion Engine Light Nuclear Core > --- PROPULSION ------- Light Treads Light Treads > --- UTILITY ---------- High-capacity Storage Unit Weight Redist. System Visual Processing Unit > --- WEAPON ----------- Light Assault Rifle Heavy Assault Rifle > --- INVENTORY -------- Improved Ion Engine Improved Heat Sink High-capacity Storage Unit Small Laser Small Laser Beam Rifle Light Assault Rifle Datajack Mining Laser [Rating: 16] Favorites ----------- Power Improved Ion Engine Engine Improved Ion Engine Power Core Light Nuclear Core Propulsion Light Treads Treads Light Treads Wheel Compact Wheel Utility Seismic Detector Device Seismic Detector Storage High-capacity Storage Unit Processor Visual Processing Unit Weapon Light Assault Rifle Energy Gun Small Laser Ballistic Gun Light Assault Rifle Launcher Rocket Launcher Special Weapon Mining Laser Special Melee Weapon Datajack Build | -11 -10 -10 -9 -9 ------- Run | Yrd Mat Min Mat Min Slots Evolved 2 | . . . 2 . Power 1 | . . . 1 . Propulsion . | . . . . . Utility 1 | . . . 1 . Weapon . | . . . . . Parts Attached 50 | 8 12 4 21 5 Power 12 | 1 4 1 5 1 Engine 11 | 1 4 1 4 1 Core 1 | . . . 1 . Reactor . | . . . . . Propulsion 12 | 4 2 1 4 1 Treads 10 | 2 2 1 4 1 Leg . | . . . . . Wheel 2 | 2 . . . . Hover . | . . . . . Flight . | . . . . . Utility 9 | 1 3 1 4 . Device 4 | 1 1 1 1 . Storage 4 | . 1 . 3 . Processor 1 | . 1 . . . Hackware . | . . . . . Protection . | . . . . . Artifact . | . . . . . Weapon 17 | 2 3 1 8 3 Energy Gun 8 | 1 2 . 3 2 Energy Cannon . | . . . . . Ballistic Gun 5 | 1 1 1 2 . Ballistic Cannon . | . . . . . Launcher 1 | . . . . 1 Special Weapon 1 | . . . 1 . Impact Weapon . | . . . . . Slashing Weapon . | . . . . . Piercing Weapon . | . . . . . Special Melee Weapon 2 | . . . 2 . Unidentified Prototypes . | . . . . . Parts Lost 21 | . 5 3 5 8 Power 7 | . 2 . 3 2 Propulsion 5 | . 1 1 1 2 Utility 2 | . . 1 1 . Weapon 7 | . 2 1 . 4 Highest Loss Streak 8 | . 2 3 3 8 To Critical Strikes . | . . . . . Average Slot Usage (%) 94 | . 89 90 99 98 Engine 17 | . 13 14 20 21 Treads 23 | . 25 27 22 20 Device 9 | . 13 7 8 . Storage 10 | . 8 . 13 22 Processor 7 | . . 14 11 11 Energy Gun 10 | . 12 14 6 11 Ballistic Gun 11 | . 13 12 13 . Special Melee Weapon 2 | . . . 2 10 Peak Build Rating 16 | 6 8 8 16 15 Average Rating 9 | 4 6 7 13 14 On Entrance 7 | . 6 8 8 14 Naked Turns . | . . . . . Heaviest Build 98 | 6 14 9 98 98 Greatest Support 40 | 40 40 40 40 40 Greatest Overweight (x) 4 | . 4 . 2 4 Average Overweight (x) . | . . . 1 2 Largest Inventory Capacity 20 | 5 8 5 20 20 Average Capacity 11 | 5 6 5 18 20 Most Carried 14 | 3 8 5 13 14 Average Carried 7 | 2 5 4 9 13 Final Capacity 20 | 5 5 5 20 20 Final Carried 13 | 3 5 5 13 10 Class Distribution -------------------- 62% | Scavenger-Mutant 37% | Mutant Dominant Class ---------------- Mutant | -10/Materials Scavenger-Mutant | -10/Mines Scavenger-Mutant | -9/Materials Scavenger-Mutant | -9/Mines Resources | -11 -10 -10 -9 -9 ----------- Run | Yrd Mat Min Mat Min Matter Collected 859 | 249 263 69 278 . Remotely . | . . . . . Salvage Created 1462 | 122 689 155 496 . Parts 105 | 6 55 13 31 . Haulers Intercepted 4 | . 2 . 2 . Recyclers Shooed 3 | . 1 2 . . Parts Field Recycled . | . . . . . Retrieved Matter . | . . . . . Parts Self-Destructed . | . . . . . Prevented . | . . . . . Kills | -11 -10 -10 -9 -9 ------- Run | Yrd Mat Min Mat Min Combat Hostiles Destroyed 28 | . 16 4 8 . Guns 28 | . 16 4 8 . Classes Destroyed 10 | 2 6 . 2 . Worker 5 | . 3 2 . . Builder 1 | . 1 . . . Tunneler 4 | 2 1 1 . . Hauler 4 | . 2 . 2 . Recycler 1 | 1 . . . . Watcher 2 | . 1 . 1 . Swarmer 9 | . 6 3 . . Grunt 16 | . 10 1 5 . Brawler 1 | . . . 1 . Sentry 2 | . . . 2 . Best Kill Streak 6 | 2 6 3 3 . Combat Bots Only 6 | . 6 3 3 . Max Kills in Single Turn 2 | 1 2 1 1 . Gunslinging . | . . . . . Exploded . | . . . . . Melee . | . . . . . Uniques/NPCs Destroyed . | . . . . . Combat | -11 -10 -10 -9 -9 -------- Run | Yrd Mat Min Mat Min Hostile Shots Fired 243 | . 93 62 70 18 Missed 48 | . 16 19 13 . Damage Taken 2831 | . 798 509 879 645 Core 594 | . 82 106 199 207 Absorbed by Shields . | . . . . . Regen/Repaired (Parts) 184 | . 184 . . . Core Remaining (%) 62 | 100 . 24 . . Volleys Fired 144 | 8 66 29 38 3 Largest 2 | 2 2 2 2 2 Hottest 85 | 60 60 60 85 80 Shots Fired 271 | 16 124 47 76 8 Gun 269 | 16 124 47 76 6 Cannon . | . . . . . Launcher 2 | . . . . 2 Special . | . . . . . Kinetic 144 | 8 62 20 54 . Thermal 121 | 8 62 27 22 2 Explosive 2 | . . . . 2 Electromagnetic 4 | . . . . 4 Robot Hit Streak 15 | 7 11 15 15 4 Robot Miss Streak 4 | 1 3 4 3 1 Penetration Max . | . . . . . Secondary Targets 3 | . 2 1 . . Max Gunslinging Chain 1 | . 1 1 . . Shots Hit Robots 202 | 13 84 32 64 9 Core Hits 79 | 5 40 11 21 2 Critical Kills 1 | . 1 . . . Critical Parts Destroyed 1 | . . . 1 . Critical Strikes 5 | . 1 . 4 . Burn 3 | . . . 3 . Destroy 2 | . 1 . 1 . Melee Attacks 10 | . . . 7 3 Impact . | . . . . . Slashing . | . . . . . Piercing . | . . . . . Sneak Attacks 10 | . . . 7 3 Combat Hostiles . | . . . . . Follow-up Attacks . | . . . . . Damage Inflicted 2109 | 113 890 318 726 62 Guns 2085 | 113 890 318 726 38 Cannons . | . . . . . Explosions 24 | . . . . 24 Melee . | . . . . . Ramming . | . . . . . Kinetic 1065 | 40 466 112 447 . Thermal 994 | 73 424 206 279 12 Explosive 24 | . . . . 24 Electromagnetic 26 | . . . . 26 Impact . | . . . . . Slashing . | . . . . . Piercing . | . . . . . Highest Corruption 10 | . 3 3 10 10 Average Corruption 4 | . 2 3 9 10 Corruption Purged . | . . . . . Corruption Blocked . | . . . . . Effects 42 | . 16 9 6 11 Message Errors 8 | . 5 1 1 1 Matter Fused 10 | . 2 1 4 3 Heat Flow Errors 6 | . 2 2 1 1 Energy Discharges 5 | . 1 1 . 3 Data Loss (minor) 5 | . 2 3 . . Data Loss (major) 3 | . 1 1 . 1 Misfires 3 | . 1 . . 2 Weapon Failures 2 | . 2 . . . Overload Shots . | . . . . . Overflow Damage . | . . . . . Projectiles . | . . . . . Explosions . | . . . . . Melee . | . . . . . Knockbacks . | . . . . . Impact . | . . . . . Kinetic . | . . . . . Secondary . | . . . . . Self-Inflicted Damage 25 | . . . . 25 Shots 1 | . . . . 1 Rammed . | . . . . . Targets Rammed . | . . . . . Kicked . | . . . . . Crushed . | . . . . . Highest Temperature 254 | 40 254 226 172 155 Average Temperature 54 | 16 73 51 39 46 Received Heat Transfer 879 | . 345 231 303 . Effects 1 | . 1 . . . Energy Bleed 1 | . 1 . . . Siege Activations . | . . . . . Robots Corrupted . | . . . . . Combat Hostiles . | . . . . . Parts Fried . | . . . . . Impact Corruptions . | . . . . . Robots Melted . | . . . . . Combat Hostiles . | . . . . . Parts Melted 4 | . 1 1 2 . Heat Transferred 2586 | 175 1023 475 888 25 Parts Sabotaged . | . . . . . Parts Stolen . | . . . . . Parts Stripped . | . . . . . Power Chain Reactions . | . . . . . Alert | -11 -10 -10 -9 -9 ------- Run | Yrd Mat Min Mat Min Peak Influence 324 | 15 324 168 176 5 Initial 83 | . 9 83 . . Average 80 | 4 151 111 35 . Maximum Alert Level 1 | . 1 . . . Low Security (%) 89 | 100 68 100 100 100 Level 1 10 | . 31 . . . Level 2 . | . . . . . Level 3 . | . . . . . Level 4 . | . . . . . Level 5 . | . . . . . High Security . | . . . . . Max Security . | . . . . . Squads Dispatched 5 | . 4 . 1 . Investigation 1 | . 1 . . . Extermination . | . . . . . Reinforcement 4 | . 3 . 1 . Assault . | . . . . . Garrison . | . . . . . Intercept . | . . . . . Searches Triggered . | . . . . . Construction Impeded . | . . . . . Haulers Reinforced . | . . . . . Active Scanning Responses . | . . . . . Cargo Convoy Interrupts . | . . . . . Stealth | -11 -10 -10 -9 -9 --------- Run | Yrd Mat Min Mat Min Distress Signals 2 | . 2 . . . Communications Jammed . | . . . . . Distress Signals . | . . . . . Times Spotted 47 | . 24 5 15 3 Peak Tracking Total 8 | . 8 5 3 2 Tactical Retreats 3 | . 3 . . . Traps | -11 -10 -10 -9 -9 ------- Run | Yrd Mat Min Mat Min Traps Triggered 4 | . 4 . . . Indirectly . | . . . . . Trap Hack Attempts . | . . . . . Triggered . | . . . . . Disarmed . | . . . . . Reprogrammed . | . . . . . Reused . | . . . . . Traps Extracted . | . . . . . Installed . | . . . . . Triggered . | . . . . . Machines | -11 -10 -10 -9 -9 ---------- Run | Yrd Mat Min Mat Min Machines Disabled . | . . . . . Max in Single Turn . | . . . . . Machines Repaired . | . . . . . Machines Dismantled . | . . . . . Machines Sabotaged . | . . . . . Overloaded Fab Kills . | . . . . . Hacking | -11 -10 -10 -9 -9 --------- Run | Yrd Mat Min Mat Min Machines Accessed 1 | . 1 . . . Terminals . | . . . . . Fabricators . | . . . . . Repair Stations 1 | . 1 . . . Recycling Units . | . . . . . Scanalyzers . | . . . . . Garrison Access . | . . . . . Total Hacks 8 | . 8 . . . Successful 7 | . 7 . . . Failed 1 | . 1 . . . Catastrophic . | . . . . . Database Lockouts . | . . . . . Manual . | . . . . . Terminals . | . . . . . Fabricators . | . . . . . Repair Stations 8 | . 8 . . . Recycling Units . | . . . . . Scanalyzers . | . . . . . Garrison Access . | . . . . . Terminal Hacks . | . . . . . Fabricator Hacks . | . . . . . Repair Station Hacks 7 | . 7 . . . Scan Component 3 | . 3 . . . Repair 3 | . 3 . . . Refit 1 | . 1 . . . Recycling Unit Hacks . | . . . . . Scanalyzer . | . . . . . Garrison Access Hacks . | . . . . . Unauthorized Hacks . | . . . . . Terminals . | . . . . . Fabricators . | . . . . . Repair Stations . | . . . . . Recycling Units . | . . . . . Scanalyzers . | . . . . . Garrison Access . | . . . . . Data Cores Recovered . | . . . . . Used . | . . . . . Hacking Detections . | . . . . . Full Trace Events . | . . . . . Feedback Events . | . . . . . Feedback Blocked . | . . . . . Robot Schematics Acquired . | . . . . . Robots Built . | . . . . . Authchips . | . . . . . Time . | . . . . . Total Robot Build Rating . | . . . . . Part Schematics Acquired . | . . . . . Parts Built . | . . . . . Authchips . | . . . . . Time . | . . . . . Total Part Build Rating . | . . . . . Parts Repaired 3 | . 3 . . . Time 78 | . 78 . . . Parts Recycled . | . . . . . Recycled Matter . | . . . . . Retrieved Matter . | . . . . . Retrieved Components . | . . . . . Parts Scanalyzed . | . . . . . Part Schematics Acquired . | . . . . . Parts Damaged . | . . . . . Bothacking | -11 -10 -10 -9 -9 ------------ Run | Yrd Mat Min Mat Min Used RIF Installer . | . . . . . Robots Hacked 6 | . . . 4 2 Non-combat 6 | . . . 4 2 Combat . | . . . . . Robot Hacks Applied 6 | . . . 4 2 no_distress 6 | . . . 4 2 Relay Couplers Released . | . . . . . Fabnet Peak Effective % . | . . . . . Robots Rewired . | . . . . . Allies Hacked . | . . . . . Hacks Repelled . | . . . . . Allies | -11 -10 -10 -9 -9 -------- Run | Yrd Mat Min Mat Min Total Allies . | . . . . . Largest Group . | . . . . . Highest-Rated Group . | . . . . . Highest-Rated Ally . | . . . . . Total Orders . | . . . . . Ally Attacks . | . . . . . Total Damage . | . . . . . Kills . | . . . . . Allies Corrupted . | . . . . . Allies Melted . | . . . . . Intel | -11 -10 -10 -9 -9 ------- Run | Yrd Mat Min Mat Min Robot Analysis Total . | . . . . . Derelict Logs Recovered 1 | . . 1 . . Drone Launches . | . . . . . Drone Recoveries . | . . . . . Exploration | -11 -10 -10 -9 -9 ------------- Run | Yrd Mat Min Mat Min Turns Passed 3045 | 153 1036 460 1049 347 Spaces Moved 1232 | 76 455 237 362 102 Core 3 | 1 2 . . . Treads 1219 | 65 453 237 362 102 Legs . | . . . . . Wheels 10 | 10 . . . . Hover . | . . . . . Flight . | . . . . . Fastest Speed 50 | 50 160 160 160 320 Average Speed 196 | 150 160 160 240 321 Slowest Speed 480 | 160 250 160 320 480 Overloaded Moves . | . . . . . Propulsion Burnouts . | . . . . . Robots Hopped . | . . . . . Cave-ins Triggered . | . . . . . Exploration Rate (%) 28 | 6 54 35 27 21 Regions Visited 4 Branch Regions 2 Pre-discovered Areas . | . . . . . Known Exits Taken . | . . . . . Unknown Exits Taken 4 | 1 1 1 1 . Scrap Searched 1 | . . 1 . . Spaces Dug . | . . . . . Terrain Destroyed 19 | . . . . 19 Melee . | . . . . . Projectile . | . . . . . AOE 19 | . . . . 19 Terrain Rammed . | . . . . . Walls Destroyed . | . . . . . Machines Disabled . | . . . . . Actions | -11 -10 -10 -9 -9 --------- Run | Yrd Mat Min Mat Min Total 1596 | 98 646 274 463 115 Wait 120 | . 94 3 22 1 Move 1228 | 75 454 236 361 102 Hop . | . . . . . Pick Up 29 | 5 12 1 10 1 Fast Attach 12 | 6 2 2 2 . Attach 16 | . 6 1 5 4 Detach . | . . . . . Swap 22 | 2 4 1 14 1 Drop 15 | 2 8 1 4 . Fire 144 | 8 66 29 38 3 Melee 10 | . . . 7 3 Ram . | . . . . . Kick . | . . . . . Crush . | . . . . . Escape Stasis . | . . . . . Rewire . | . . . . . Trap . | . . . . . Miscellaneous . | . . . . . Route ------- -11/Scrapyard -10/Materials -10/Mines (discovered 2 exits: [*Mat x2]) -9/Materials -9/Mines History --------- Turn | Location | Event 17 | -11/Scrapyard | Discovered new exit (range 16) 154 | -11/Scrapyard | Entered Materials 316 | -10/Materials | Build established: Mutant 830 | -10/Materials | Repaired Lgt. Treads 863 | -10/Materials | Repaired Ion Engine 897 | -10/Materials | Repaired Seismic Detector 1158 | -10/Materials | Discovered new exit (range 14) 1190 | -10/Materials | Entered Mines 1202 | -10/Mines | Discovered new exit (range 4) 1336 | -10/Mines | Core integrity fell below 50% 1368 | -10/Mines | Lost 3 parts (1n1u1w) 1452 | -10/Mines | Discovered new exit (range 8) 1650 | -10/Mines | Entered Materials 1650 | -9/Materials | Evolved 2 slots: Power x1, Utility x1 1674 | -9/Materials | Build established: Scavenger-Mutant 2429 | -9/Materials | System corruption reached 10% 2459 | -9/Materials | Lost 3 parts (1p1n1u) 2548 | -9/Materials | Discovered new exit (range 18) 2699 | -9/Materials | Entered Mines 2706 | -9/Mines | Received a Rocket Launcher from a helpful Derelict 2969 | -9/Mines | Assembled infested the area 3029 | -9/Mines | Core integrity fell below 50% 3041 | -9/Mines | Core integrity fell below 20% 3046 | -9/Mines | Destroyed by D-53 Grenadier with Mini Grenade Launcher Last Messages --------------- 02962_ T-07 Excavator is excavating. 02966_ K-01 Serf collects debris. 02968_ System corrupted: Energy discharge (-94). 02969_ ALERT: Infestation in the mines, dispatching Demolisher response squad. 02992_ System corrupted: Matter fused (-9). 03008_ System corrupted: Substantial component data lost. 03027_ System corrupted: FCS attempts to trigger EM Shotgun. 03027_ System corrupted: EM Shotgun misfires. 03028_ C-30 ARC bursts open, deploying its payload. 03028_ D-53 Grenadier unfolds itself. 03028_ Lgt. Treads destroyed. 03032_ The unstable cave ceiling collapses. 03034_ EM Shotgun destroyed. 03035_ The unstable cave ceiling collapses. 03036_ Rocket Launcher destroyed. 03038_ Imp. Ion Engine destroyed. 03040_ The unstable cave ceiling collapses. 03042_ Sml. Laser destroyed. 03044_ K-01 Serf destroyed. Map ----- +----------------------------------------------------+ | ???????????????????????????????? | | ???????????????????????????????? | | ???????????????????????????????? | | ???????????????????????????????? | | ???????????????????????????????? | | ???????????????????????????????? | | ???????????????????????????????? | | ???????????????????????####????? | | ??????????????????????? ##???? | | ??????????????????????? #???? | | ??????????????????????? #???? | | ???????????????????????# ????? | | ???????????????????????# ????? | | ???????????????????????# #????? | | ???????????????????????# #????? | | ??????????????????????? #????? | | ??????????????????????##a #####? | | ??????????????????????# """ #? | | ################# """ #? | | " t """ #? | | " #? | | ??????################ #? | | ????????????######??# #? | | ???????????## ##?# = #? | | ???????????# #?# #? | | ???????????# #?# @ #? | | ???????????# #?# #? | | ???????????# ##?# #? | | ???????????## #??## d ##? | | ??###???????## ##??## % ##?? | | ?## ##???????## ##??# ??? | | ?# ##???????# ##? # #?? | | ## #???????# #?# #####?? | | # #??????## #?# d#?????? | | ##????### ##?# #?????? | | #????## #### #?????? | | # ##???# """ #?????? | | ## ##### """ #?????? | | ?## """ ##### ##?????? | | ??## ##???# #??????? | | ???# #### ##????# #####??? | | ???## ##?# ##?????# #??? | | ????####?# #??????##### #??? | | ????????# #????????### #??? | | ??????? #????????# #??? | | ?????? #????????# #?? | | ?????? ## #????????# ##?? | | ?????? #?# #????????#####??? | | ?????? ??? #???????????????? | | ????????????? #???????????????? | +----------------------------------------------------+ Best States ------------- Heat Dissipation 28 Energy Generation 21 Energy Capacity 430 Matter Stores 300 Matter Capacity 300 Sight Range 18 Terrain Scan Density 10 Additional Mass Support 6 Evasion (%) 42 Recoil Reduction 2 Item Schematics ----------------- None Robot Schematics ------------------ None Fabricated ------------ Nothing Alien Tech Used ----------------- None Achievements -------------- None Challenges ------------ None Game ------ Seed GatlingMomentumAnalyzer Manual? 0 Play Time 00:27:55 Cumulative 19.2 hours Start 2024.12.14 @ 04:11:25 End 2024.12.14 @ 04:38:44 Sessions 1 Manual Loads 0 Difficulty Rogue Special Mode None Game No. 29 Rogue 29 Adventurer 0 Explorer 0 Win Type - Total 0 Types 0/0/0/0/0/0/0/0/0 Lore% 8 Gallery% 16 Achievement% 17 Wizard Run 0 Options --------- Layout 0 ASCII 0 Keyboard 1 Movement Vi Keybinds 0 Fullscreen 1 Font 18/X11Bold Map View 76x50 Zoom Use 0% Tactical HUD 1 Map Filters NONE Filters NONE Steam 1 RUN: 8e07358e-3f66-4fa4-8651-52e731461ddc